[Event "1000GM Spring Break Schev-C 2024"]
[Site "San Jose"]
[Date "2024.04.02"]
[Round "1.1"]
[White "Zhou, Ruoyu"]
[Black "Alarcon Bahamondez, Roberto Ignacio"]
[Result "0-1"]
[ECO "B33"]
[WhiteElo "2168"]
[BlackElo "2335"]
[Annotator "RC"]
[PlyCount "128"]
[EventDate "2024.03.28"]
[EventType "schev"]
[EventCountry "USA"]
[SourceTitle "playchess.com"]
[Source "ChessBase"]
[SourceQuality "1"]
[TimeControl "5400+30"]

1. e4 {[%emt 0:00:02]} c5 {[%emt 0:00:50]} 2. Nf3 {[%emt 0:00:10]} Nc6 {[%emt 0:00:37]} 3. d4 {[%emt 0:00:15]} cxd4 {[%emt 0:00:05]} 4. Nxd4 {[%emt 0:00:09]} Qb6 {[%emt 0:00:10]} 5. Nb3 {[%emt 0:00:59]} Nf6 {[%emt 0:01:05]} 6. Nc3 {[%emt 0:01:01]} e6 {[%emt 0:00:39]} 7. Be3 {[%emt 0:01:11]} Qc7 {[%emt 0:00:17]} 8. a3 {[%emt 0:04:28]} a6 {[%emt 0:00:36]} 9. f4 {[%emt 0:06:12]} d6 {[%emt 0:00:43]} 10. Bd3 {[%emt 0:02:13]} b5 {[%emt 0:05:10]} 11. O-O {[%emt 0:02:06]} Be7 {[%emt 0:00:40]} 12. Qe2 {[%emt 0:04:28]} Bb7 {[%emt 0:08:13]} 13. Rad1 {[%emt 0:02:59]} b4 {[%emt 0:03:59]} 14. axb4 {[%emt 0:05:28]} Nxb4 {[%emt 0:01:17]} 15. Bd4 {[%emt 0:04:40]} Nxd3 {[%emt 0:10:54]} 16. Rxd3 {[%emt 0:06:32]} e5 {[%emt 0:11:49]} 17. fxe5 {[%emt 0:06:20]} dxe5 {[%emt 0:00:28]} 18. Bf2 {[%emt 0:06:39]} O-O {[%emt 0:11:56]} 19. Rfd1 {[%emt 0:13:46]} a5 {[%emt 0:05:01]} 20. Qf3 {[%emt 0:07:25]} a4 {[%emt 0:05:45]} 21. Nc1 {[%emt 0:03:10]} Bc5 {[%emt 0:04:30]} 22. Bxc5 {[%emt 0:03:53]} Qxc5+ {[%emt 0:00:04]} 23. Qe3 {[%emt 0:01:06]} Qb4 {[%emt 0:02:40]} 24. N1a2 {[%emt 0:00:44]} Qa5 {[%emt 0:00:55]} 25. h3 {[%emt 0:02:46]} Rac8 {[%emt 0:03:01]} 26. Ra1 {[%emt 0:02:53]} Rc4 {[%emt 0:01:25]} 27. b3 {[%emt 0:01:16]} axb3 {[%emt 0:00:23]} 28. cxb3 {[%emt 0:00:10]} Rcc8 {[%emt 0:01:33]} 29. b4 {[%emt 0:04:31]} Qa8 {[%emt 0:00:21]} 30. Re1 {[%emt 0:00:56]} Rc4 {[%emt 0:00:20]} 31. Qg5 {[%emt 0:02:27]} Nxe4 {[%emt 0:20:34]} 32. Nxe4 {[%emt 0:05:35]} Rxe4 {[%emt 0:00:00]} 33. Rxe4 {[%emt 0:00:00]} Bxe4 {[%emt 0:00:00]} 34. Rg3 {[%emt 0:00:00]} Bg6 {[%emt 0:00:00]} 35. Nc3 {[%emt 0:00:00]} f6 {[%emt 0:00:00]} 36. Qe3 {[%emt 0:00:00]} Rd8 {[%emt 0:00:00]} 37. Qc5 {[%emt 0:00:45]} Qb7 {[%emt 0:00:00]} 38. Re3 {[%emt 0:01:18]} Rd2 {[%emt 0:00:00]} 39. Re2 {[%emt 0:00:49]} Rxe2 {[%emt 0:00:00]} 40. Nxe2 {[%emt 0:00:04]} Be4 {[%emt 0:00:00]} 41. Qc4+ {[%emt 0:00:49]} Bd5 42. Qg4 {[%emt 0:01:15]} Qc6 {[%emt 0:00:00]} 43. Kh2 {[%emt 0:00:30]} h6 {[%emt 0:00:00]} 44. h4 {[%emt 0:00:30]} Kf7 45. Ng3 {[%emt 0:00:00]} Be6 {[%emt 0:00:00]} 46. Qh5+ {[%emt 0:00:15]} Kf8 {[%emt 0:00:00]} 47. Qe2 {[%emt 0:00:36]} Qc4 {[%emt 0:00:26]} 48. Qxc4 {[%emt 0:00:24]} Bxc4 {[%emt 0:00:05]} 49. Ne4 {[%emt 0:00:24]} Ke7 {[%emt 0:00:24]} 50. g4 {[%emt 0:00:24]} Ke6 {[%emt 0:00:30]} 51. Nc3 g6 52. Kg3 {[%emt 0:01:13]} f5 {[%emt 0:01:00]} 53. gxf5+ {[%emt 0:00:30]} gxf5 {[%emt 0:00:30]} 54. Kf3 {[%emt 0:00:30]} Bd5+ {[%emt 0:00:30]} 55. Kg3 {[%emt 0:00:30]} h5 {[%emt 0:00:30]} 56. b5 {[%emt 0:00:30]} Kd6 {[%emt 0:00:30]} 57. b6 {[%emt 0:00:30]} Bc6 {[%emt 0:00:30]} 58. Na2 {[%emt 0:00:30]} Kc5 {[%emt 0:00:30]} 59. Nc1 {[%emt 0:00:30]} f4+ {[%emt 0:00:30]} 60. Kf2 {[%emt 0:00:30]} e4 {[%emt 0:00:30]} 61. Ne2 {[%emt 0:00:30]} e3+ {[%emt 0:00:30]} 62. Kf1 {[%emt 0:00:30]} f3 {[%emt 0:00:30]} 63. Ng3 {[%emt 0:00:30]} Kxb6 {[%emt 0:00:30]} 64. Kg1 {[%emt 0:00:30]} Bb5 {[%emt 0:00:30]} 0-1

[Event "1000GM Spring Break Schev-C 2024"]
[Site "San Jose"]
[Date "2024.04.02"]
[Round "1.2"]
[White "Talwalkar, Vedant"]
[Black "Zuluaga Mancilla, Cesar"]
[Result "0-1"]
[ECO "B41"]
[WhiteElo "1996"]
[BlackElo "2217"]
[Annotator "RC"]
[PlyCount "138"]
[EventDate "2024.03.28"]
[EventType "schev"]
[EventCountry "USA"]
[SourceTitle "playchess.com"]
[Source "ChessBase"]
[SourceQuality "1"]
[TimeControl "5400+30"]

1. e4 {[%emt 0:00:03]} c5 {[%emt 0:06:20]} 2. Nf3 {[%emt 0:00:06]} a6 {[%emt 0:00:21]} 3. c4 {[%emt 0:00:09]} e6 {[%emt 0:00:13]} 4. d4 {[%emt 0:01:07]} cxd4 {[%emt 0:00:08]} 5. Nxd4 {[%emt 0:00:07]} Nf6 {[%emt 0:00:07]} 6. Nc3 {[%emt 1:31:58]} Qc7 {[%emt 0:00:33]} 7. a3 {[%emt 0:00:30]} d6 {[%emt 1:26:18]} 8. Be3 {[%emt 0:00:30]} Nbd7 {[%emt 0:00:30]} 9. Bd3 {[%emt 0:00:30]} Ne5 {[%emt 0:00:30]} 10. Be2 {[%emt 0:00:30]} Be7 {[%emt 0:00:30]} 11. f4 {[%emt 0:00:30]} Ng6 {[%emt 0:00:30]} 12. O-O {[%emt 0:00:00]} O-O {[%emt 0:00:30]} 13. Rc1 {[%emt 0:00:00]} Bd7 {[%emt 0:00:30]} 14. g4 {[%emt 0:01:30]} h6 {[%emt 0:00:30]} 15. Qe1 {[%emt 0:00:30]} Nh7 16. Qg3 Qd8 17. Nf3 Nh4 18. Rcd1 Nxf3+ 19. Qxf3 Qc7 20. Rc1 Bf6 21. Qf2 Qd8 22. Bb6 Qe7 23. c5 Bxc3 {[%emt 0:00:00]} 24. cxd6 {[%emt 0:00:00]} Qxd6 {[%emt 0:00:00]} 25. Rxc3 {[%emt 0:00:00]} Rfc8 {[%emt 0:00:00]} 26. Rd1 {[%emt 0:00:00]} Qe7 {[%emt 0:00:00]} 27. Bc5 {[%emt 0:00:00]} Qe8 {[%emt 0:00:00]} 28. e5 {[%emt 0:00:00]} Ba4 {[%emt 0:00:00]} 29. b3 {[%emt 0:00:00]} Bc6 {[%emt 0:00:00]} 30. Bd3 {[%emt 0:00:00]} Nf8 {[%emt 0:00:00]} 31. g5 {[%emt 0:00:00]} hxg5 {[%emt 0:00:00]} 32. fxg5 {[%emt 0:00:00]} Bd5 {[%emt 0:00:00]} 33. Rf1 {[%emt 0:00:00]} b6 {[%emt 0:00:00]} 34. Bd4 {[%emt 0:00:00]} Rxc3 {[%emt 0:00:00]} 35. Bxc3 {[%emt 0:00:00]} Bxb3 {[%emt 0:00:00]} 36. Bb4 {[%emt 0:00:00]} Rd8 {[%emt 0:00:00]} 37. Bxa6 {[%emt 0:00:00]} Rd1 {[%emt 0:00:00]} 38. Rxd1 {[%emt 0:00:00]} Bxd1 {[%emt 0:00:00]} 39. Qxb6 {[%emt 0:00:00]} Ng6 {[%emt 0:00:00]} 40. Qd6 {[%emt 0:01:55]} Bc2 {[%emt 0:00:00]} 41. Bc4 {[%emt 0:03:08]} Qc8 {[%emt 0:00:00]} 42. Ba6 {[%emt 0:00:55]} Qa8 {[%emt 0:00:00]} 43. Ba5 {[%emt 0:01:37]} Qf3 {[%emt 0:00:00]} 44. Qd8+ {[%emt 0:01:20]} Kh7 {[%emt 0:00:00]} 45. Qd2 {[%emt 0:01:23]} Be4 {[%emt 0:00:00]} 46. Qe2 {[%emt 0:01:24]} Qh1+ {[%emt 0:00:24]} 47. Kf2 {[%emt 0:00:03]} Qxh2+ {[%emt 0:00:13]} 48. Ke1 {[%emt 0:00:04]} Qxe5 {[%emt 0:00:51]} 49. Bd2 {[%emt 0:00:58]} Qg3+ {[%emt 0:00:33]} 50. Qf2 {[%emt 0:01:01]} Qxa3 {[%emt 0:01:28]} 51. Qh2+ {[%emt 0:00:21]} Kg8 {[%emt 0:00:01]} 52. Be2 {[%emt 0:00:34]} Qa1+ {[%emt 0:00:25]} 53. Kf2 {[%emt 0:00:04]} e5 {[%emt 0:00:47]} 54. Qh3 {[%emt 0:00:40]} Qd4+ {[%emt 0:00:40]} 55. Be3 {[%emt 0:00:07]} Qd8 {[%emt 0:01:21]} 56. Qg4 {[%emt 0:00:23]} Bd5 {[%emt 0:02:12]} 57. Bd3 {[%emt 0:00:50]} Be6 {[%emt 0:00:07]} 58. Qe2 {[%emt 0:00:07]} Nf4 {[%emt 0:00:14]} 59. Bxf4 {[%emt 0:00:09]} exf4 {[%emt 0:00:06]} 60. Qe4 {[%emt 0:00:45]} g6 {[%emt 0:00:10]} 61. Qxf4 {[%emt 0:04:13]} Qxd3 {[%emt 0:00:43]} 62. Qb8+ {[%emt 0:00:03]} Kh7 {[%emt 0:00:09]} 63. Qh2+ {[%emt 0:00:03]} Qh3 {[%emt 0:00:07]} 64. Qxh3+ {[%emt 0:00:06]} Bxh3 {[%emt 0:00:05]} 65. Kg3 {[%emt 0:00:03]} Be6 {[%emt 0:00:08]} 66. Kf4 {[%emt 0:00:02]} Kg7 {[%emt 0:00:04]} 67. Ke5 {[%emt 0:00:04]} Kf8 {[%emt 0:00:14]} 68. Kf6 {[%emt 0:00:05]} Ke8 {[%emt 0:00:04]} 69. Kg7 {[%emt 0:00:04]} Ke7 {[%emt 0:00:09]} 0-1

[Event "1000GM Spring Break Schev-C 2024"]
[Site "San Jose"]
[Date "2024.04.02"]
[Round "1.3"]
[White "Guo, Ethan"]
[Black "Figueredo Losada, Leonel"]
[Result "0-1"]
[ECO "C71"]
[WhiteElo "2227"]
[BlackElo "2325"]
[Annotator "RC"]
[PlyCount "78"]
[EventDate "2024.03.28"]
[EventType "schev"]
[EventCountry "USA"]
[SourceTitle "playchess.com"]
[Source "ChessBase"]
[SourceQuality "1"]
[TimeControl "5400+30"]

1. e4 {[%emt 0:04:36]} e5 {[%emt 0:00:05]} 2. Nf3 {[%emt 0:00:12]} Nc6 {[%emt 0:00:02]} 3. Bb5 {[%emt 0:00:20]} a6 {[%emt 0:00:16]} 4. Ba4 {[%emt 0:00:08]} d6 {[%emt 0:00:34]} 5. c4 {[%emt 0:00:03]} Bd7 {[%emt 0:00:08]} 6. Nc3 {[%emt 0:00:21]} g6 {[%emt 0:00:34]} 7. Bxc6 {[%emt 0:02:30]} Bxc6 {[%emt 0:10:33]} 8. d4 {[%emt 0:01:06]} Bg7 {[%emt 0:00:05]} 9. O-O {[%emt 0:05:11]} Ne7 {[%emt 0:00:17]} 10. Be3 {[%emt 0:06:54]} O-O {[%emt 0:02:08]} 11. d5 {[%emt 0:02:50]} Bd7 {[%emt 0:00:05]} 12. c5 {[%emt 0:00:43]} f5 {[%emt 0:15:34]} 13. Qb3 {[%emt 0:03:34]} Bc8 {[%emt 0:22:58]} 14. cxd6 {[%emt 0:01:12]} cxd6 {[%emt 0:00:09]} 15. Bb6 {[%emt 0:01:25]} Qe8 {[%emt 0:00:51]} 16. Qb4 {[%emt 0:08:26]} Rf6 {[%emt 0:01:19]} 17. Nd2 {[%emt 0:04:04]} f4 {[%emt 0:00:58]} 18. f3 {[%emt 0:00:37]} Bd7 {[%emt 0:08:33]} 19. Bc7 {[%emt 0:03:45]} b5 {[%emt 0:00:10]} 20. a4 {[%emt 0:06:10]} Ra7 {[%emt 0:14:30]} 21. Bb6 {[%emt 0:05:25]} Rb7 {[%emt 0:00:04]} 22. Bf2 {[%emt 0:00:21]} g5 {[%emt 0:03:58]} 23. Nc4 {[%emt 0:00:51]} Qh5 {[%emt 0:00:44]} 24. Nxd6 {[%emt 0:02:57]} Rh6 {[%emt 0:00:06]} 25. Rfd1 {[%emt 0:01:23]} Qxh2+ {[%emt 0:02:24]} 26. Kf1 {[%emt 0:00:19]} Rb8 {[%emt 0:00:05]} 27. Nf5 {[%emt 0:15:02]} Nxf5 {[%emt 0:01:06]} 28. exf5 {[%emt 0:00:06]} Bxf5 {[%emt 0:06:21]} 29. Qe7 {[%emt 0:13:41]} Bf6 {[%emt 0:02:13]} 30. Qa7 {[%emt 0:00:23]} Rf8 {[%emt 0:01:01]} 31. Ke2 {[%emt 0:05:02]} e4 {[%emt 0:00:32]} 32. Nxe4 {[%emt 0:00:53]} Bxe4 {[%emt 0:00:13]} 33. Rh1 {[%emt 0:01:35]} Qxg2 {[%emt 0:00:26]} 34. Rxh6 {[%emt 0:00:15]} Qxf3+ {[%emt 0:00:06]} 35. Kf1 {[%emt 0:00:42]} Qg2+ {[%emt 0:00:45]} 36. Ke2 {[%emt 0:00:27]} Bg6 {[%emt 0:02:37]} 37. Rg1 {[%emt 0:01:32]} Re8+ {[%emt 0:00:17]} 38. Kd2 {[%emt 0:00:12]} Qxd5+ {[%emt 0:00:09]} 39. Kc1 {[%emt 0:00:14]} Rc8+ {[%emt 0:00:08]} 0-1

[Event "1000GM Spring Break Schev-C 2024"]
[Site "San Jose"]
[Date "2024.04.02"]
[Round "1.4"]
[White "Jimenez Garcia, Emmanuel"]
[Black "Guo, Andrew"]
[Result "1-0"]
[ECO "E61"]
[WhiteElo "2421"]
[BlackElo "2216"]
[Annotator "TA"]
[PlyCount "81"]
[EventDate "2024.03.28"]
[EventType "schev"]
[EventCountry "USA"]
[SourceTitle "playchess.com"]
[Source "ChessBase"]
[SourceQuality "1"]
[TimeControl "5400+30"]

{[%evp 14,81,24,31,35,31,24,14,31,7,13,15,26,33,29,-14,0,-24,5,-27,0,-11,-6,-14,0,-39,-33,-31,0,0,45,-40,-30,-37,0,0,0,-39,-37,-93,-39,-57,-22,-40,0,-20,177,186,200,193,287,262,921,948,865,563,862,442,492,487,1493,1456,1496,1475,29979,29980,29991,29992,29992,29993]} 1. Nf3 {[%emt 0:04:38]} Nf6 {[%emt 0:00:07]} 2. d4 {[%emt 0:00:10]} g6 {[%emt 0:00:32]} 3. c4 {[%emt 0:00:09]} Bg7 {[%emt 0:00:03]} 4. Nc3 {[%emt 0:00:05]} O-O {[%emt 0:00:05]} 5. Bg5 {[%emt 0:00:30]} d6 {[%emt 0:01:17]} 6. e3 {[%emt 0:00:28]} Nbd7 {[%emt 0:09:29]} 7. Be2 {[%emt 0:02:52]} e5 {[%emt 0:01:48]} 8. Qc2 {[%emt 0:01:41]} exd4 {[%emt 0:09:20]} 9. Nxd4 {[%emt 0:00:17]} Nc5 {[%emt 0:01:42]} 10. Bh4 {[%emt 0:01:09]} Ne6 {[%emt 0:04:39] The position is equal.} 11. Nb3 {[%emt 0:03:42]} Bd7 {[%emt 0:07:24]} 12. Rd1 {[%emt 0:02:53][%cal Oc4c5]} Bc6 {[%emt 0:15:20]} 13. O-O {[%emt 0:01:20]} a5 {[%emt 0:01:45]} 14. a4 {[%emt 0:03:41][%cal Oc4c5]} Qe8 {[%emt 0:03:25]} 15. Nb5 {[%emt 0:01:54]} b6 {[%emt 0:10:34]} 16. Rfe1 {[%emt 0:07:43]} Qc8 {[%emt 0:02:09]} 17. f3 {[%emt 0:14:11]} Nd7 {[%emt 0:05:54][%cal Bf6d7,Bd7e5,Be5c6,Bc6b4][%mdl 32]} 18. Bf1 {[%emt 0:02:31]} Re8 {[%emt 0:04:23]} 19. Nc1 {[%emt 0:02:23][%cal Bb3c1,Bc1e2,Be2d4][%mdl 32]} f5 {[%emt 0:05:50]} 20. Ne2 {[%emt 0:04:27]} Ne5 {[%emt 0:03:20][%cal Oc6f3] ...Bxf3! is the strong threat.} 21. Ned4 {[%emt 0:06:03]} Bb7 {[%emt 0:01:35]} 22. Bg3 {[%emt 0:15:32]} (22. Nxe6 $14 Rxe6 23. e4 fxe4 24. fxe4) 22... Kh8 {[%emt 0:03:41]} 23. Nc3 {[%emt 0:03:13]} Nc6 {[%emt 0:02:52]} 24. Ndb5 {[%emt 0:00:43]} Nb4 {[%emt 0:00:09]} 25. Qf2 {[%emt 0:02:54]} Nc5 {[%emt 0:01:46]} 26. h4 {[%emt 0:00:31]} (26. Nd5 $15 Bxd5 27. cxd5) 26... Be5 {[%emt 0:01:32]} ({Better is} 26... Rf8 $17) 27. Bf4 {[%emt 0:02:34]} Kg7 {[%emt 0:02:11]} (27... Qd7 {simplifies} 28. Nd5 Bxd5 29. cxd5 Bxf4 30. exf4 Rxe1 31. Rxe1 Qg7) 28. h5 {[%emt 0:00:32][%cal Bh4h5,Bh5g6][%mdl 32]} Bf6 {[%emt 0:00:45]} 29. Qg3 {[%emt 0:01:04]} Ne6 $2 {[%emt 0:00:33] [#] This costs Black the game.} (29... Qd8 $11 {and Black stays safe.}) 30. Bxd6 $1 $18 {[%emt 0:04:42][%mdl 512]} cxd6 {[%emt 0:00:16]} (30... Nc2 31. Re2) 31. Nxd6 {[%emt 0:00:06]} Qb8 {[%emt 0:00:57]} (31... f4 {might work better.} 32. Qg4 (32. Nxe8+ Qxe8 33. exf4 Qc8 $16) 32... Qc5 33. Nxb7 (33. Nxe8+ Rxe8 34. Rd7+ Re7 $18) 33... Qxh5) 32. hxg6 {[%emt 0:00:29]} (32. Nxe8+ $6 Qxe8 33. Nb5 Qe7 $18 (33... Bxb2 $2 34. Nc7 $18)) 32... h5 $2 {[%emt 0:00:35]} (32... Kh8 33. Qh3 (33. Nxf5 $2 Qxg3 34. Nxg3 hxg6 $19) 33... Re7 34. Nxf5 (34. Qxf5 Qf8 $18) 34... Qf8) 33. Nxf5+ {[%emt 0:01:10]} (33. Nxe8+ Qxe8 34. Qh3 Nc5 $18) 33... Kg8 {[%emt 0:00:24][%cal Bg7g8,Bg8f8,Bf8e8][%mdl 32]} 34. Qh3 {[%emt 0:06:16]} Ng7 {[%emt 0:00:28]} 35. Nxg7 {[%emt 0:03:24]} Bxg7 {[%emt 0:00:22]} 36. c5 {[%emt 0:00:36] Bc4+ would now be deadly.} (36. Qxh5 Qe5 37. Qh7+ Kf8 $18) 36... Bc8 {[%emt 0:00:34]} (36... Qe5 $142 37. Bc4+ (37. cxb6 Re7 $18) 37... Kf8) 37. Bc4+ {[%emt 0:00:23]} Kf8 {[%emt 0:00:04] [#]} 38. Rd7 $1 {[%emt 0:01:04][%mdl 512]} Bxd7 {[%emt 0:00:58]} (38... Re5 39. Rf7+) 39. Qxd7 {[%emt 0:00:01][%csl Gc4,Gg6][%cal Rd7f7] White mates.} Re7 {[%emt 0:00:26] Black is weak on the light squares} 40. Qf5+ {[%emt 0:00:02]} Ke8 {[%emt 0:00:05]} 41. Bb5+ {[%emt 0:00:24] Weighted Error Value: White=0.60/Black=0.54.  Loses game:     	---       	Black=1      Mistake:       	White=2     	Black=4      Inaccurate:     	White=4     	Black=7      OK:         	White=7     	Black=6      Best:        	White=1     	---        Brilliant:      	White=1     	---} ({Less strong is} 41. Qxh5 Qe5 42. Bf7+ Kd8 $11) 1-0

[Event "1000GM Spring Break Schev-C 2024"]
[Site "San Jose"]
[Date "2024.04.02"]
[Round "1.5"]
[White "Arenas, David"]
[Black "Wang, Jeffery"]
[Result "1-0"]
[ECO "C54"]
[WhiteElo "2368"]
[BlackElo "2056"]
[Annotator "RC"]
[PlyCount "67"]
[EventDate "2024.03.28"]
[EventType "schev"]
[EventCountry "USA"]
[SourceTitle "playchess.com"]
[Source "ChessBase"]
[SourceQuality "1"]
[TimeControl "5400+30"]

1. e4 {[%emt 0:04:32]} e5 {[%emt 0:00:30]} 2. Nf3 {[%emt 0:00:06]} Nc6 {[%emt 0:00:11]} 3. Bc4 {[%emt 0:00:04]} Bc5 {[%emt 0:00:08]} 4. c3 {[%emt 0:00:06]} Nf6 {[%emt 0:00:11]} 5. d3 {[%emt 0:00:04]} d6 {[%emt 0:00:13]} 6. O-O {[%emt 0:00:29]} a5 {[%emt 0:00:53]} 7. Nbd2 {[%emt 0:00:23]} O-O {[%emt 0:00:16]} 8. h3 {[%emt 0:00:10]} h6 {[%emt 0:00:06]} 9. Re1 {[%emt 0:00:05]} Be6 {[%emt 0:01:11]} 10. b3 {[%emt 0:00:05]} Ba7 {[%emt 0:04:28]} 11. Nf1 {[%emt 0:01:02]} Ne7 {[%emt 0:07:33]} 12. Ng3 {[%emt 0:07:21]} Ng6 {[%emt 0:02:16]} 13. a4 {[%emt 0:00:25]} Re8 {[%emt 0:05:34]} 14. Bxe6 {[%emt 0:03:45]} Rxe6 {[%emt 0:00:53]} 15. d4 {[%emt 0:05:03]} d5 {[%emt 0:09:05]} 16. exd5 {[%emt 0:24:30]} Nxd5 {[%emt 0:07:02]} 17. c4 {[%emt 0:00:22]} Nb4 {[%emt 0:00:54]} 18. d5 {[%emt 0:00:06]} Re8 {[%emt 0:00:54]} 19. Bb2 {[%emt 0:00:02]} c6 {[%emt 0:07:38]} 20. Nxe5 {[%emt 0:05:11]} Nxe5 {[%emt 0:09:57]} 21. Rxe5 {[%emt 0:00:31]} Rxe5 {[%emt 0:04:08]} 22. Bxe5 {[%emt 0:00:02]} Qg5 {[%emt 0:01:52]} 23. Qh5 {[%emt 0:02:01]} cxd5 {[%emt 0:06:04]} 24. Qxg5 {[%emt 0:00:32]} hxg5 {[%emt 0:00:05]} 25. cxd5 {[%emt 0:00:09]} Rd8 {[%emt 0:08:42]} 26. Nf5 {[%emt 0:04:49]} g6 {[%emt 0:02:13]} 27. Bf6 {[%emt 0:07:46]} Rd7 {[%emt 0:02:27]} 28. Ne7+ {[%emt 0:00:01]} Kf8 {[%emt 0:00:10]} 29. Rc1 {[%emt 0:00:02]} Rxe7 {[%emt 0:00:16]} 30. d6 {[%emt 0:00:14]} Bxf2+ {[%emt 0:02:32]} 31. Kf1 {[%emt 0:00:14]} Re1+ {[%emt 0:00:23]} 32. Rxe1 {[%emt 0:00:08]} Bxe1 {[%emt 0:00:10]} 33. d7 {[%emt 0:00:06]} Nc6 {[%emt 0:00:08]} 34. Kxe1 {[%emt 0:00:05]} 1-0

[Event "1000GM Spring Break Schev-C 2024"]
[Site "San Jose"]
[Date "2024.04.03"]
[Round "2.1"]
[White "Zuluaga Mancilla, Cesar"]
[Black "Zhou, Ruoyu"]
[Result "1/2-1/2"]
[ECO "D30"]
[WhiteElo "2206"]
[BlackElo "2149"]
[Annotator "RC"]
[PlyCount "60"]
[EventDate "2024.03.28"]
[EventType "schev"]
[EventCountry "USA"]
[SourceTitle "playchess.com"]
[Source "ChessBase"]
[SourceQuality "1"]
[TimeControl "5400+30"]

1. d4 {[%emt 0:01:20]} d5 {[%emt 0:09:31]} 2. Nf3 {[%emt 0:00:10]} Nf6 {[%emt 0:00:15]} 3. c4 {[%emt 0:00:20]} e6 {[%emt 0:00:09]} 4. Qc2 {[%emt 0:01:01]} Be7 {[%emt 0:00:55]} 5. Bf4 {[%emt 0:01:50]} O-O {[%emt 0:02:55]} 6. e3 {[%emt 0:00:03]} c5 {[%emt 0:07:09]} 7. dxc5 {[%emt 0:01:03]} Qa5+ {[%emt 0:02:09]} 8. Nc3 {[%emt 0:01:18]} Qxc5 {[%emt 1:11:27]} 9. Qb3 {[%emt 0:11:22]} Nc6 {[%emt 0:00:00]} 10. cxd5 {[%emt 0:00:25]} exd5 {[%emt 0:00:00]} 11. Be2 {[%emt 0:00:53]} d4 {[%emt 0:00:00]} 12. exd4 {[%emt 0:00:01]} Nxd4 {[%emt 0:00:00]} 13. Nxd4 {[%emt 0:00:11]} Qxd4 {[%emt 0:00:00]} 14. Be3 {[%emt 0:01:30]} Qb4 {[%emt 0:00:00]} 15. Qxb4 {[%emt 0:03:48]} Bxb4 {[%emt 0:00:00]} 16. O-O {[%emt 0:00:06]} Bd7 {[%emt 0:00:00]} 17. Bf3 {[%emt 0:04:17]} Bxc3 {[%emt 0:00:00]} 18. bxc3 {[%emt 0:00:01]} Bc6 {[%emt 0:00:00]} 19. Bxc6 {[%emt 0:00:28]} bxc6 {[%emt 0:00:00]} 20. Rab1 {[%emt 0:00:46]} Nd5 {[%emt 0:00:00]} 21. Bd4 {[%emt 0:02:31]} c5 {[%emt 0:00:00]} 22. Bxc5 {[%emt 0:00:02]} Rfc8 {[%emt 0:00:00]} 23. Bd4 {[%emt 0:00:24]} Nxc3 {[%emt 0:07:30]} 24. Bxc3 {[%emt 0:00:12]} Rxc3 {[%emt 0:00:00]} 25. Rb7 {[%emt 0:03:16]} Ra3 {[%emt 0:00:00]} 26. Rfb1 {[%emt 0:00:10]} g6 {[%emt 0:00:00]} 27. R1b2 {[%emt 0:00:05]} Rc8 {[%emt 0:00:00]} 28. g3 {[%emt 0:00:10]} a5 {[%emt 0:00:00]} 29. Ra7 {[%emt 0:04:24]} h5 {[%emt 0:00:00]} 30. h4 {[%emt 0:00:11]} Rd8 {[%emt 0:03:30]} 1/2-1/2

[Event "1000GM Spring Break Schev-C 2024"]
[Site "San Jose"]
[Date "2024.04.03"]
[Round "2.2"]
[White "Figueredo Losada, Leonel"]
[Black "Talwalkar, Vedant"]
[Result "1-0"]
[ECO "A04"]
[WhiteElo "2323"]
[BlackElo "2020"]
[Annotator "RC"]
[PlyCount "113"]
[EventDate "2024.03.28"]
[EventType "schev"]
[EventCountry "USA"]
[SourceTitle "playchess.com"]
[Source "ChessBase"]
[SourceQuality "1"]
[TimeControl "5400+30"]

1. Nf3 {[%emt 0:00:30]} f5 {[%emt 0:02:59]} 2. d3 {[%emt 0:00:04]} d6 {[%emt 0:00:40]} 3. e4 {[%emt 0:00:06]} e5 {[%emt 0:00:13]} 4. Nc3 {[%emt 1:31:50]} Nf6 {[%emt 0:00:23]} 5. exf5 {[%emt 0:00:00]} Bxf5 {[%emt 0:00:10]} 6. d4 {[%emt 0:01:00]} Nc6 {[%emt 1:29:05]} 7. Bb5 {[%emt 0:00:30]} exd4 {[%emt 0:00:00]} 8. Nxd4 {[%emt 0:00:30]} Bd7 {[%emt 0:01:00]} 9. Bxc6 {[%emt 0:00:30]} bxc6 {[%emt 0:00:00]} 10. O-O {[%emt 0:00:30]} Be7 {[%emt 0:00:00]} 11. Qe2 {[%emt 0:00:30]} O-O {[%emt 0:00:00]} 12. Nxc6 {[%emt 0:00:30]} Bxc6 {[%emt 0:02:00]} 13. Qc4+ {[%emt 0:00:00]} Kh8 {[%emt 0:00:00]} 14. Qxc6 {[%emt 0:01:00]} Rb8 {[%emt 0:00:00]} 15. Nd5 {[%emt 0:00:00]} Nxd5 {[%emt 0:00:00]} 16. Qxd5 {[%emt 0:00:00]} Qd7 {[%emt 0:00:00]} 17. b3 {[%emt 0:00:00]} Bf6 {[%emt 0:00:00]} 18. Rb1 {[%emt 0:00:00]} Rbe8 {[%emt 0:00:00]} 19. Be3 {[%emt 0:00:00]} Be5 {[%emt 0:00:00]} 20. Qd2 {[%emt 0:00:00]} Qg4 {[%emt 0:00:00]} 21. f4 {[%emt 0:00:00]} Bf6 {[%emt 0:00:00]} 22. Rbe1 {[%emt 0:00:00]} Qf5 {[%emt 0:00:00]} 23. Bf2 {[%emt 0:00:00]} Rd8 {[%emt 0:00:00]} 24. Re2 {[%emt 0:00:00]} a5 {[%emt 0:00:00]} 25. a4 {[%emt 0:00:00]} Rb8 {[%emt 0:00:00]} 26. Rfe1 {[%emt 0:00:00]} Bb2 {[%emt 0:00:00]} 27. g3 {[%emt 0:00:00]} Qf6 {[%emt 0:00:00]} 28. Re6 {[%emt 0:00:00]} Qc3 {[%emt 0:00:00]} 29. Qxc3 {[%emt 0:00:00]} Bxc3 {[%emt 0:00:00]} 30. R1e2 {[%emt 0:00:00]} Bf6 {[%emt 0:00:00]} 31. R2e4 {[%emt 0:00:00]} d5 {[%emt 0:00:00]} 32. Re2 {[%emt 0:00:00]} d4 {[%emt 0:00:00]} 33. Rd2 {[%emt 0:00:00]} c5 {[%emt 0:00:00]} 34. Rc6 {[%emt 0:00:00]} Rfc8 {[%emt 0:00:00]} 35. Rxc8+ {[%emt 0:00:00]} Rxc8 {[%emt 0:00:00]} 36. Kf1 {[%emt 0:00:00]} Kg8 {[%emt 0:00:00]} 37. Ke2 {[%emt 0:00:00]} Kf7 {[%emt 0:00:00]} 38. Kd3 {[%emt 0:00:00]} Ke6 {[%emt 0:00:00]} 39. Kc4 {[%emt 0:00:00]} Kd6 {[%emt 0:00:00]} 40. Re2 {[%emt 0:00:00]} Rb8 {[%emt 0:00:00]} 41. Be1 {[%emt 0:00:00]} Ra8 {[%emt 0:00:00]} 42. g4 {[%emt 0:00:00]} h6 {[%emt 0:00:00]} 43. Bg3 {[%emt 0:00:00]} Rd8 {[%emt 0:00:00]} 44. f5+ {[%emt 0:00:00]} Kc6 {[%emt 0:00:00]} 45. Re6+ {[%emt 0:00:00]} Kb7 {[%emt 0:00:00]} 46. Bd6 {[%emt 0:00:00]} h5 {[%emt 0:00:00]} 47. Be7 {[%emt 0:00:00]} Rd7 {[%emt 0:00:00]} 48. Bxf6 {[%emt 0:00:00]} gxf6 {[%emt 0:00:00]} 49. h3 {[%emt 0:00:00]} hxg4 {[%emt 0:18:30]} 50. hxg4 {[%emt 0:00:00]} Rg7 {[%emt 0:00:00]} 51. Rxf6 {[%emt 0:00:00]} Rxg4 {[%emt 0:00:00]} 52. Kxc5 {[%emt 0:00:00]} Rg2 {[%emt 0:00:00]} 53. Kxd4 {[%emt 0:00:00]} Rxc2 {[%emt 0:00:00]} 54. Re6 {[%emt 0:00:00]} Rf2 {[%emt 0:00:00]} 55. f6 {[%emt 0:00:00]} Kc7 {[%emt 0:00:00]} 56. Kc4 {[%emt 0:00:00]} Kd7 {[%emt 0:00:00]} 57. Ra6 {[%emt 0:00:00]} 1-0